fUSD/lending_fUSD_20260414
["ID","MTS","AMOUNT","RATE_DAILY","PERIOD"]
[420471134,1776121841263,-2000.0,0.00012024,2]
[420471135,1776121841273,-4975.50029936,0.00012033,2]
[420471136,1776121841286,-7749.85,0.00012087,2]
[420471137,1776121841308,-12766.11924474,0.00012089,2]
[420471138,1776121841317,-162.53,0.00012175,2]
[420471139,1776121841340,-157.0,0.00012252,3]
[420471140,1776121841350,-4837.87,0.00012315,2]
[420471141,1776121841360,-4975.50029936,0.00012429,2]
[420471142,1776121841371,-12766.11924474,0.00012478,2]
[420471143,1776121841398,-186.68,0.00012746,2]
[420471144,1776121841408,-4975.50029936,0.00012825,2]
[420471145,1776121841417,-12766.11924474,0.00012867,2]
[420471146,1776121841430,-198.70051504,0.00012966,2]
[420471147,1776121841443,-477.72,0.0001306,2]
[420471148,1776121841452,-189.8736,0.000131,2]
[420471149,1776121841463,-209.92154749,0.00013124,2]
[420471150,1776121841475,-273.93068376,0.00013124,2]
[420471151,1776121841486,-217.53285394,0.0001314,2]
[420471152,1776121841498,-162.53,0.0001319,2]
[420471153,1776121841508,-683.72,0.00013198,2]
[420471154,1776121841519,-4975.50029936,0.00013221,2]
[420471155,1776121841534,-156.0,0.00013227,3]
[420471156,1776121841547,-157.0,0.00013227,3]
[420471157,1776121841557,-247.18,0.00013233,2]
[420471158,1776121841572,-168.96841022,0.00013245,2]
[420471159,1776121841583,-12766.11924474,0.00013256,2]
[420471160,1776121841600,-238.67488874,0.0001332,2]
[420471161,1776121841610,-250.0,0.00013344,2]
[420471162,1776121841621,-2000.0,0.0001336,2]
[420471163,1776121841631,-3240.0,0.00013425,2]
[420471164,1776121841645,-263.55003495,0.00013437,2]
[420471165,1776121841658,-324.03960395,0.00013437,2]
[420471166,1776121841670,-169.70243487,0.0001345,2]
[420471167,1776121841684,-171.16261329,0.00013486,2]
[420471168,1776121841699,-507.0,0.000135,2]
[420471169,1776121841710,-186.0566558,0.00013541,2]
[420471170,1776121841720,-177.21752331,0.00013541,2]
[420471171,1776121841738,-205.20046237,0.00013541,2]
[420471172,1776121841750,-150.00000001,0.00013541,2]
[420471173,1776121841765,-231.64430667,0.00013615,2]
[420471174,1776121841799,-188.96324938,0.00013615,2]
[420471175,1776121841808,-4975.50029936,0.00013616,2]
[420471176,1776121841822,-469.468262,0.0001362,2]
[420471177,1776121841842,-150.00000002,0.00013625,2]
[420471178,1776121841864,-151.0,0.00013695,2]
[420471179,1776121841874,-500.0,0.00013698,2]
[420471180,1776121841895,-500.0,0.00013698,2]
[420471181,1776121841907,-500.0,0.00013698,2]
[420471182,1776121841916,-500.0,0.00013698,2]
[420471183,1776121841939,-500.0,0.00013698,2]
[420471184,1776121841954,-331.94307882,0.00013698,2]
[420471185,1776121841964,-500.0,0.00013698,2]
[420471186,1776121841980,-500.0,0.00013698,2]
[420471187,1776121842007,-500.0,0.00013698,2]
[420471188,1776121842030,-500.0,0.00013698,2]
[420471189,1776121842040,-500.0,0.00013698,2]
[420471190,1776121842050,-500.0,0.00013698,2]
[420471191,1776121842065,-500.0,0.00013698,2]
[420471192,1776121842080,-500.0,0.00013698,2]
[420471194,1776121842531,-175.30099318,0.00013698,2]
[420471195,1776121842591,-500.0,0.00013698,2]
[420471196,1776121842603,-500.0,0.00013698,2]
[420471197,1776121842628,-500.0,0.00013698,2]
[420471199,1776121842638,-500.0,0.00013698,2]
[420471200,1776121842653,-500.0,0.00013698,2]
[420471201,1776121842693,-500.0,0.00013698,2]
[420471202,1776121842705,-500.0,0.00013698,2]
[420471204,1776121842733,-500.0,0.00013698,2]
[420471206,1776121842743,-500.0,0.00013698,2]
[420471208,1776121842760,-500.0,0.00013698,2]
[420471209,1776121842813,-500.0,0.00013698,2]
[420471211,1776121842825,-500.0,0.00013698,2]
[420471213,1776121842845,-500.0,0.00013698,2]
[420471215,1776121842868,-500.0,0.00013698,2]
[420471217,1776121842877,-500.0,0.00013698,2]
[420471219,1776121842887,-500.0,0.00013698,2]
[420471221,1776121842902,-500.0,0.00013698,2]
[420471223,1776121842912,-500.0,0.00013698,2]
[420471225,1776121842921,-500.0,0.00013698,2]
[420471228,1776121842930,-1118.37,0.00013698,2]
[420471231,1776121842956,-1118.37,0.00013698,2]
[420471234,1776121842965,-1118.37,0.00013698,2]
[420471236,1776121842974,-1118.37,0.00013698,2]
[420471238,1776121842992,-1118.37,0.00013698,2]
[420471240,1776121843001,-1118.37,0.00013698,2]
[420471242,1776121843011,-1118.37,0.00013698,2]
[420471244,1776121843022,-1118.37,0.00013698,2]
[420471246,1776121843059,-1118.37,0.00013698,2]
[420471249,1776121843084,-1118.37,0.00013698,2]
[420471250,1776121843093,-1118.37,0.00013698,2]
[420471251,1776121843118,-500.0,0.00013698,2]
[420471252,1776121843128,-500.0,0.00013698,2]
[420471253,1776121843137,-1118.37,0.00013698,2]
[420471254,1776121843154,-1118.37,0.00013698,2]
[420471255,1776121843179,-325.0,0.00013699,2]
[420471256,1776121843189,-1156.17,0.00013699,2]
[420471257,1776121843199,-500.0,0.00013699,2]
[420471258,1776121843212,-500.0,0.00013699,2]
[420471259,1776121843237,-500.0,0.00013699,2]
[420471260,1776121843246,-500.0,0.00013699,2]
[420471261,1776121843257,-404.24100535,0.00013699,2]
[420471262,1776121843268,-231.58259095,0.00013699,2]
[420471263,1776121843295,-500.0,0.00013699,2]
[420471264,1776121843306,-500.0,0.00013699,2]
[420471265,1776121843317,-177.98144855,0.00013699,2]
[420471266,1776121843332,-150.0,0.00013699,2]
[420471267,1776121843357,-150.0,0.000137,2]
[420471268,1776121843367,-150.0,0.000137,2]
[420471269,1776121843380,-1104.0,0.00013719,2]
[420471270,1776121843406,-1104.0,0.0001372,2]
[420471271,1776121843415,-1104.0,0.00013732,2]
[420471272,1776121843427,-365.021646,0.00013747,2]
[420471273,1776121843450,-454.52,0.00013769,2]
[420471274,1776121843460,-1104.0,0.00013781,2]
[420471275,1776121843494,-163.07320163,0.00013799,2]
[420471276,1776121843505,-177.96050042,0.00013799,2]
[420471277,1776121843534,-1104.0,0.00013822,2]
[420471279,1776121843545,-1104.0,0.00013843,2]
[420471280,1776121843576,-376.26148412,0.00013868,2]
[420471281,1776121843586,-1104.0,0.00013875,2]
[420471282,1776121843612,-578.20924308,0.00013885,2]
[420471283,1776121843622,-721.12765535,0.00013885,2]
[420471284,1776121843634,-500.0,0.00013885,2]
[420471285,1776121843654,-500.0,0.00013885,2]
[420471286,1776121843675,-275.80654139,0.00013885,2]
[420471287,1776121843696,-500.0,0.00013885,2]
[420471288,1776121843730,-500.0,0.00013885,2]
[420471289,1776121843755,-500.0,0.00013885,2]
[420471290,1776121843765,-500.0,0.00013885,2]
[420471292,1776121843775,-500.0,0.00013885,2]
[420471294,1776121843792,-500.0,0.00013885,2]
[420471296,1776121843820,-1428.38747117,0.00013885,2]
[420471298,1776121843839,-500.0,0.00013885,2]
[420471300,1776121843850,-500.0,0.00013885,2]
[420471301,1776121843876,-500.0,0.00013885,2]
[420471302,1776121843886,-500.0,0.00013885,2]
[420471303,1776121843895,-151.0,0.00013885,2]
[420471304,1776121843917,-174.61919141,0.00013885,2]
[420471305,1776121843929,-1104.0,0.00013894,2]
[420471306,1776121843939,-150.0,0.00013898,2]
[420471307,1776121843965,-150.0,0.00013898,2]
[420471308,1776121843977,-150.0,0.00013898,2]
[420471309,1776121843988,-200.0,0.00013898,2]
[420471312,1776121844015,-150.0,0.00013898,2]
[420471315,1776121844037,-150.0,0.00013898,2]
[420471319,1776121844053,-150.0,0.00013898,2]
[420471320,1776121844070,-500.0,0.00013898,2]
[420471321,1776121844080,-500.0,0.00013898,2]
[420471323,1776121844105,-500.0,0.00013898,2]
[420471325,1776121844115,-500.0,0.00013898,2]
[420471327,1776121844138,-526.0,0.00013898,2]
[420471328,1776121844147,-360.3730142,0.00013898,2]
[420471330,1776121844176,-500.0,0.00013898,2]
[420471331,1776121844185,-266.31943254,0.00013898,2]
[420471332,1776121844194,-500.0,0.00013898,2]
[420471333,1776121844214,-500.0,0.00013898,2]
[420471334,1776121844234,-500.0,0.00013898,2]
[420471335,1776121844244,-500.0,0.00013898,2]
[420471336,1776121844253,-500.0,0.00013898,2]
[420471337,1776121844288,-500.0,0.00013898,2]
[420471338,1776121844301,-500.0,0.00013898,2]
[420471339,1776121844352,-311.79295233,0.00013898,2]
[420471340,1776121844362,-500.0,0.00013898,2]
[420471341,1776121844373,-500.0,0.00013898,2]
[420471342,1776121844394,-500.0,0.00013898,2]
[420471343,1776121844405,-500.0,0.00013898,2]
[420471344,1776121844417,-500.0,0.00013898,2]
[420471345,1776121844435,-277.22012015,0.00013898,2]
[420471346,1776121844460,-500.0,0.00013898,2]
[420471347,1776121844471,-500.0,0.00013898,2]
[420471348,1776121844508,-500.0,0.00013898,2]
[420471349,1776121844518,-500.0,0.00013898,2]
[420471350,1776121844529,-150.0,0.00013898,2]
[420471351,1776121844548,-500.0,0.00013898,2]
[420471352,1776121844560,-150.0,0.00013898,2]
[420471353,1776121844570,-500.0,0.00013898,2]
[420471354,1776121844581,-150.0,0.00013898,2]
[420471355,1776121844604,-294.27151014,0.00013898,2]
[420471356,1776121844613,-150.0,0.00013898,2]
[420471357,1776121844625,-500.0,0.00013898,2]
[420471358,1776121844638,-150.0,0.00013898,2]
[420471359,1776121844666,-172.71610205,0.00013898,2]
[420471360,1776121844675,-500.0,0.00013898,2]
[420471361,1776121844685,-406.90177788,0.00013898,2]
[420471362,1776121844703,-153.68639938,0.00013898,2]
[420471363,1776121844714,-161.91790153,0.00013898,2]
[420471364,1776121844724,-150.0,0.00013898,2]
[420471365,1776121844736,-150.0,0.00013898,2]
[420471366,1776121844752,-150.0,0.00013898,2]
[420471367,1776121844761,-150.0,0.00013898,2]
[420471368,1776121844782,-150.0,0.00013898,2]
[420471369,1776121844791,-157.30297586,0.00013898,2]
[420471370,1776121844800,-150.0,0.00013898,2]
[420471371,1776121844837,-150.0,0.00013898,2]
[420471372,1776121844847,-200.0,0.00013898,2]
[420471373,1776121844860,-150.0,0.00013898,2]
[420471374,1776121844875,-150.0,0.00013898,2]
[420471375,1776121844894,-200.0,0.00013898,2]
[420471376,1776121844904,-150.0,0.00013898,2]
[420471377,1776121844915,-150.0,0.00013898,2]
[420471378,1776121844925,-200.0,0.00013898,2]
[420471379,1776121844942,-1100.0,0.000139,5]
[420471380,1776121844954,-268.41960526,0.00013901,2]
[420471381,1776121844965,-280.41836753,0.00013911,2]
[420471382,1776121844993,-299.99999999,0.00013923,2]
[420471383,1776121845003,-926.0,0.00013931,2]
[420471384,1776121845015,-1218.0,0.00013931,2]
[420471385,1776121845038,-6026.0,0.00013931,2]
[420471386,1776121845048,-3776.0,0.00013931,2]
[420471387,1776121845067,-1104.0,0.00013932,2]
[420471388,1776121845081,-1104.0,0.00013938,2]
[420471389,1776121845106,-500.0,0.0001394,2]
[420471390,1776121845117,-151.0,0.0001394,2]
[420471391,1776121845127,-500.0,0.00013945,2]
[420471392,1776121845142,-15294.4290121,0.00013971,2]
[420471393,1776121845156,-500.0,0.00013995,2]
[420471394,1776121845165,-151.0,0.00013995,2]
[420471395,1776121845189,-1104.0,0.00014004,2]
[420471396,1776121845199,-4975.50029936,0.00014012,2]
[420471397,1776121845212,-1118.37,0.00014027,2]
[420471398,1776121845225,-1118.37,0.00014027,2]
[420471399,1776121845235,-397998.4197605,0.00014028,2]
[420471400,1776121845245,-153.755028,0.00014028,2]
[420471401,1776121845262,-151.0,0.00014028,2]
[420471402,1776121845273,-500.0,0.0001405,2]
[420471403,1776121845283,-151.0,0.0001405,2]
[420471404,1776121845305,-1104.0,0.0001407,2]
[420471405,1776121845322,-1104.0,0.00014072,2]
[420471406,1776121845352,-501.19161686,0.00014073,2]
[420471407,1776121845376,-1104.0,0.00014097,2]
[420471408,1776121845390,-1104.0,0.00014098,2]
[420471409,1776121845400,-200.0,0.000141,2]
[420471410,1776121845410,-1413.0,0.000141,2]
[420471411,1776121845420,-500.0,0.00014105,2]
[420471412,1776121845435,-151.0,0.00014105,2]
[420471413,1776121845444,-251.30611682,0.00014131,2]
[420471414,1776121845454,-500.0,0.0001416,2]
[420471415,1776121845465,-264.64864696,0.0001416,2]
[420471416,1776121845485,-1413.0,0.0001417,2]
[420471417,1776121845495,-157.0,0.00014201,3]
[420471418,1776121845505,-162.53,0.00014204,2]
[420471419,1776121845522,-150.0,0.00014213,2]
[420471420,1776121845545,-150.0,0.00014213,2]
[420471421,1776121845555,-172.859,0.00014213,2]
[420471422,1776121845575,-150.0,0.00014213,2]
[420471423,1776121845587,-150.0,0.00014213,2]
[420471424,1776121845596,-150.0,0.00014213,2]
[420471425,1776121845607,-150.0,0.00014213,2]
[420471426,1776121845637,-150.0,0.00014213,2]
[420471427,1776121845668,-150.0,0.00014213,2]
[420471428,1776121845682,-150.0,0.00014213,2]
[420471430,1776121845691,-1348.0,0.00014213,2]
[420471431,1776121845715,-3526.0,0.00014213,2]
[420471432,1776121845729,-1058.196,0.00014213,2]
[420471433,1776121845769,-277.633,0.00014213,2]
[420471434,1776121845810,-500.0,0.00014215,2]
[420471436,1776121845847,-1104.0,0.00014217,2]
[420471437,1776121845869,-1104.0,0.00014227,2]
[420471438,1776121845903,-239.41295382,0.00014247,2]
[420471439,1776121845912,-1000.0,0.00014247,2]
[420471440,1776121845949,-1100.25687957,0.00014247,2]
[420471441,1776121845959,-240.63619515,0.00014247,2]
[420471442,1776121845976,-1000.0,0.00014247,2]
[420471443,1776121845992,-1004.29369175,0.00014247,2]
[420471444,1776121846003,-500.0,0.0001427,2]
[420471445,1776121846015,-166.66,0.00014272,2]
[420471446,1776121846033,-624.70980064,0.00014289,2]
[420471447,1776121846064,-240.3465,0.000143,2]
[420471448,1776121846074,-11561.50000005,0.00014302,2]
[420471449,1776121846098,-396.75768887,0.00014313,2]
[420471450,1776121846133,-500.0,0.00014325,2]
[420471451,1776121846163,-471.66,0.00014352,2]
[420471452,1776121846172,-500.0,0.0001438,2]
[420471453,1776121846184,-1156.17,0.00014384,2]
[420471454,1776121846214,-495.0,0.00014405,2]
[420471455,1776121846224,-495.0,0.00014405,2]
[420471456,1776121846234,-4975.50029936,0.00014408,2]
[420471457,1776121846249,-1919.73985139,0.00014412,2]
[420471458,1776121846264,-1481.23780761,0.00014433,2]
[420471459,1776121846290,-181.08010149,0.00014433,2]
[420471460,1776121846325,-500.0,0.00014435,2]
[420471462,1776121846347,-1413.0,0.00014503,2]
[420471463,1776121846360,-187.39739473,0.00014513,2]
[420471465,1776121846377,-1413.0,0.00014588,2]
[420471466,1776121846402,-200.0,0.000146,5]
[420471467,1776121846416,-151.0,0.00014623,2]
[420471468,1776121846448,-151.0,0.00014623,2]
[420471469,1776121846458,-2000.0,0.0001467,2]
[420471470,1776121846483,-2000.0,0.0001467,2]
[420471471,1776121846493,-2000.0,0.0001467,2]
[420471472,1776121846504,-2000.0,0.0001467,2]
[420471473,1776121846532,-2000.0,0.0001467,2]
[420471474,1776121846542,-2000.0,0.0001467,2]
[420471475,1776121846557,-166.66,0.00014688,2]
[420471476,1776121846579,-1118.37,0.00014693,2]
[420471477,1776121846592,-281.0,0.00014694,5]
[420471478,1776121846632,-213.0,0.00014694,5]
[420471479,1776121846642,-150.0,0.00014695,2]
[420471480,1776121846657,-2000.0,0.00014696,2]
[420471481,1776121846672,-200.0,0.000147,5]
[420471482,1776121846682,-168.48,0.00014702,2]
[420471483,1776121846692,-168.48,0.00014702,2]
[420471484,1776121846710,-500.0,0.00014795,2]
[420471485,1776121846723,-1500.0,0.00014795,2]
[420471486,1776121846745,-150.0,0.00014795,2]
[420471487,1776121846764,-356.20607791,0.00014797,2]
[420471488,1776121846774,-1537.17181609,0.00014797,2]
[420471489,1776121846788,-200.0,0.000148,5]
[420471490,1776121846811,-507.0,0.00014804,3]
[420471491,1776121846822,-4975.50029936,0.00014804,2]
[420471492,1776121846836,-150.0,0.00014826,2]
[420471493,1776121846853,-1000.0,0.00014826,2]
[420471494,1776121846862,-311.41916218,0.00014839,2]
[420471495,1776121846872,-150.0,0.0001486,2]
[420471496,1776121846896,-743.0,0.00014866,2]
[420471497,1776121846906,-200.0,0.000149,5]
[420471498,1776121846915,-163.89970738,0.00014915,2]
[420471499,1776121846929,-160.0,0.00014921,2]
[420471500,1776121846945,-160.0,0.00014924,2]
[420471501,1776121846954,-500.0,0.0001494,2]
[420471502,1776121846963,-2000.0,0.0001494,2]
[420471503,1776121846984,-500.0,0.0001494,2]
[420471504,1776121846993,-200.0,0.0001494,2]
[420471505,1776121847003,-1413.0,0.00014945,2]
[420471506,1776121847013,-272.88,0.00014948,2]
[420471507,1776121847033,-1536.04360649,0.00014981,2]
[420471508,1776121847042,-187.78006525,0.00014981,2]
[420471509,1776121847051,-218.62504479,0.00014984,2]
[420471510,1776121847077,-664.99698962,0.00014994,2]
[420471511,1776121847087,-300.0,0.00015,2]
[420471512,1776121847096,-2070.78902939,0.00015,7]
[420471513,1776121847124,-243.49,0.00015,2]
[420471514,1776121847134,-552.63,0.00015,2]
[420471515,1776121847147,-300.39,0.00015,2]
[420471516,1776121847169,-2000.0,0.00015,2]
[420471517,1776121847179,-1413.0,0.00015008,2]
[420471518,1776121847189,-164.78671532,0.0001501,2]
[420471519,1776121847209,-419.61,0.00015068,2]
[420471520,1776121847218,-1156.17,0.00015068,2]
[420471521,1776121847228,-250.0,0.00015068,2]
[420471522,1776121847252,-173.1,0.00015068,2]
[420471523,1776121847262,-800.0,0.00015068,2]
[420471524,1776121847271,-1600.0,0.00015095,2]
[420471525,1776121847285,-1955.83,0.000151,2]
[420471526,1776121847298,-2235.17,0.000151,2]
[420471527,1776121847308,-858.00041329,0.000151,2]
[420471528,1776121847318,-2000.0,0.000151,2]
[420471529,1776121847343,-526.16135054,0.00015108,2]
[420471530,1776121847353,-1413.0,0.00015114,2]
[420471531,1776121847362,-672.2671927,0.00015129,2]
[420471532,1776121847375,-1807.05794369,0.00015129,2]
[420471533,1776121847389,-157.0,0.00015176,3]
[420471534,1776121847398,-2000.0,0.00015177,2]
[420471535,1776121847408,-25000.0,0.000152,3]
[420471536,1776121847427,-637.65962101,0.000152,3]
[420471537,1776121847439,-4975.50029936,0.000152,2]
[420471538,1776121847449,-440.34924175,0.000152,2]
[420471539,1776121847458,-1619.39606994,0.000152,2]
[420471540,1776121847493,-67265.70219997,0.000152,2]
[420471541,1776121847502,-2000.0,0.000152,2]
[420471542,1776121847513,-169.70243487,0.000152,2]
[420471543,1776121847536,-9180.85939741,0.000152,2]
[420471544,1776121847561,-298.25009028,0.00015213,2]
[420471545,1776121847575,-445.0,0.00015214,2]
[420471546,1776121847611,-162.53,0.00015219,2]
[420471547,1776121847622,-1413.0,0.00015258,2]
[420471548,1776121847640,-1000.0,0.0001527,2]
[420471549,1776121847659,-501.26030577,0.00015273,2]
[420471550,1776121847676,-500.0,0.00015273,2]
[420471551,1776121847724,-355.30682681,0.00015273,2]
[420471552,1776121847736,-500.0,0.00015273,2]
[420471553,1776121847770,-500.0,0.00015273,2]
[420471554,1776121847809,-500.0,0.00015273,2]
[420471555,1776121847923,-500.0,0.00015273,2]
[420471556,1776121847933,-500.0,0.00015273,2]
[420471557,1776121847944,-500.0,0.00015273,2]
[420471558,1776121847954,-500.0,0.00015273,2]
[420471559,1776121847975,-500.0,0.00015273,2]
[420471560,1776121847985,-150.0,0.00015283,2]
[420471561,1776121847995,-458.0198321,0.0001529,2]
[420471562,1776121848005,-458.0198321,0.0001529,2]
[420471563,1776121848025,-207.5471926,0.00015297,2]
[420471564,1776121848034,-25967.97327652,0.00015299,7]
[420471565,1776121848043,-920.002545,0.00015299,2]
[420471566,1776121848060,-920.002545,0.00015299,2]
[420471567,1776121848076,-920.002545,0.00015299,2]
[420471568,1776121848090,-1118.37,0.00015299,2]
[420471569,1776121848108,-1118.37,0.00015299,2]
[420471570,1776121848117,-920.002545,0.00015299,2]
[420471571,1776121848132,-1118.37,0.00015299,2]
[420471572,1776121848146,-1118.37,0.00015299,2]
[420471573,1776121848172,-1118.37,0.00015299,2]
[420471574,1776121848190,-1118.37,0.00015299,2]
[420471575,1776121848200,-1118.37,0.00015299,2]
[420471576,1776121848210,-1118.43,0.00015299,2]
[420471577,1776121848219,-139087.38932362,0.000153,2]
[420471578,1776121849359,-922.74431981,0.000153,2]
[420471579,1776121849903,6840.01,0.000106,2]
[420471580,1776121849935,10000.01,0.000106,2]
[420471581,1776121849966,10000.01,0.000106,2]
[420471582,1776121849992,10000.01,0.000106,2]
[420471583,1776121850021,10000.01,0.000106,2]
[420471584,1776121850050,10000.01,0.000106,2]
[420471585,1776121850091,10000.01,0.000106,2]
[420471586,1776121850132,10000.01,0.000106,2]
[420471587,1776121850194,10000.01,0.000106,2]
[420471588,1776121850226,10000.01,0.000106,2]
[420471589,1776121850263,3622.7125,0.000106,2]
[420471590,1776121850300,5000.01,0.000106,2]
[420471591,1776121850329,5000.01,0.000106,2]
[420471592,1776121850362,5000.01,0.000106,2]
[420471593,1776121850394,5000.01,0.000106,2]
[420471594,1776121850424,5000.01,0.000106,2]
[420471595,1776121850454,5000.01,0.000106,2]
[420471596,1776121850493,5000.01,0.000106,2]
[420471597,1776121850534,5000.01,0.000106,2]
[420471598,1776121850574,5000.01,0.000106,2]
[420471599,1776121850587,-945115.65629886,0.000106,2]
[420471600,1776121850619,-555.0,0.000106,2]
[420471601,1776121850641,-30314.13011269,0.000106,2]
[420471602,1776121850708,-9233.89150814,0.000106,2]
[420471603,1776121851781,-3638.85904344,0.000106,2]
[420471604,1776121851795,-4652.89999963,0.000106,2]
[420471605,1776121851833,-10355.93768118,0.000106,2]
[420471606,1776121855330,-8789.52792139,0.000106,2]
[420471607,1776121855396,-10000.01,0.000106,2]
[420471608,1776121855481,-10000.01,0.000106,2]
[420471609,1776121855629,-10000.01,0.000106,2]
[420471610,1776121855703,-10000.01,0.000106,2]
[420471611,1776121857439,-10000.01,0.000106,2]
[420471612,1776121857946,-10000.01,0.000106,2]
[420471613,1776121858702,-10000.01,0.000106,2]
[420471614,1776121859071,-10000.01,0.000106,2]
[420471615,1776121859186,-10000.01,0.000106,2]
[420471616,1776121859228,-10000.01,0.000106,2]
[420471617,1776121859321,-10000.01,0.000106,2]
[420471618,1776121860805,-10000.01,0.000106,2]
[420471619,1776121860831,-10000.01,0.000106,2]
[420471620,1776121860859,-10000.01,0.000106,2]
[420471621,1776121860891,-10000.01,0.000106,2]
[420471622,1776121860928,-10000.01,0.000106,2]
[420471623,1776121860963,-10000.01,0.000106,2]
[420471624,1776121861033,-10000.01,0.000106,2]
[420471625,1776121861555,-10000.01,0.000106,2]
[420471626,1776121865655,-3273.27882657,0.000106,2]
[420471627,1776121865782,-5000.01,0.000106,2]
[420471628,1776121865805,-5000.01,0.000106,2]
[420471629,1776121867580,-5000.01,0.000106,2]
[420471630,1776121867802,-5000.01,0.000106,2]
[420471631,1776121867854,-5000.01,0.000106,2]
[420471632,1776121867990,-5000.01,0.000106,2]
[420471633,1776121868130,-5000.01,0.000106,2]
[420471634,1776121868423,-5000.01,0.000106,2]
[420471635,1776121868732,-5000.01,0.000106,2]
[420471636,1776121868793,-5000.01,0.000106,2]
[420471637,1776121868834,-5000.01,0.000106,2]
[420471638,1776121868897,-5000.01,0.000106,2]
[420471639,1776121871802,-5000.01,0.000106,2]
[420471640,1776121872202,-10000.01,0.000106,2]
[420471641,1776121872307,-10000.01,0.000106,2]
[420471642,1776121872514,-10000.01,0.000106,2]
[420471643,1776121872669,-10000.01,0.000106,2]
[420471644,1776121872821,-10000.01,0.000106,2]
[420471645,1776121872903,-10000.01,0.000106,2]
[420471646,1776121873025,-10000.01,0.000106,2]
[420471647,1776121873148,-10000.01,0.000106,2]
[420471648,1776121873282,-3607.5161081,0.000106,2]
[420471649,1776121873325,-157.0,0.000106,3]
[420471650,1776121904676,5000.01,0.000106,2]
[420471651,1776121904709,5000.01,0.000106,2]
[420471652,1776121904738,571.7701,0.000106,2]
[420471653,1776121926112,157.0,0.00010699,2]
[420471654,1776121931474,151.0,0.00010694,2]
[420471655,1776121932162,151.0,0.00010694,2]
[420471656,1776121932775,151.0,0.00010694,2]
[420471657,1776121933369,253.96132556,0.00010694,2]
[420471658,1776121980267,9136.04867444,0.000106,2]
[420471659,1776121980295,10000.01,0.000106,2]
[420471660,1776121980338,10000.01,0.000106,2]
[420471661,1776121980377,10000.01,0.000106,2]
[420471662,1776121980427,10000.01,0.000106,2]
[420471663,1776121980474,10000.01,0.000106,2]
[420471664,1776121980517,10000.01,0.000106,2]
[420471665,1776121980560,10000.01,0.000106,2]
[420471666,1776121980601,10000.01,0.000106,2]
[420471667,1776121980639,10000.01,0.000106,2]
[420471668,1776121981045,4428.2399,0.000106,2]
[420471669,1776121981081,5000.01,0.000106,2]
[420471670,1776121981121,5000.01,0.000106,2]
[420471671,1776121981166,5000.01,0.000106,2]
[420471672,1776121981213,5000.01,0.000106,2]
[420471673,1776121981247,5000.01,0.000106,2]
[420471674,1776121981273,5000.01,0.000106,2]
[420471675,1776121981309,5000.01,0.000106,2]
[420471676,1776121981343,5000.01,0.000106,2]
[420471677,1776121981369,5000.01,0.000106,2]
[420471678,1776122001473,-10000.01,0.000106,2]
[420471679,1776122001695,-10000.01,0.000106,2]
[420471680,1776122001958,-10000.01,0.000106,2]
[420471681,1776122002109,-10000.01,0.000106,2]